bitfinex/quotes_SOLUSD_20260115
["timestamp","ask_amount","ask_price","bid_price","bid_amount"]
[1768442590250,3.89096859,145.11,145.07,0.6897863]
[1768442590434,0.17848668,145.1,145.07,0.6897863]
[1768442591250,3.19208805,145.12,145.08,0.6897863]
[1768442591251,0.69888054,145.12,145.08,0.6897863]
[1768442592238,0.69888054,145.12,145.07,3.88187435]
[1768442593341,0.68857622,145.08,145.04,0.6897863]
[1768442593540,0.33122163,145.08,145.05,0.6897863]
[1768442594054,0.33122163,145.08,145.04,0.6897863]
[1768442594939,3.52330968,145.08,145.04,0.6897863]
[1768442598544,0.33122163,145.08,145.04,0.6897863]
[1768442600765,0.42181553,145.11,145.04,0.6897863]
[1768442600946,3.29108805,145.09,145.04,0.6897863]
[1768442602065,3.29108805,145.09,145.05,0.70382949]
[1768442602663,0.099,145.09,145.05,0.70382949]
[1768442610458,3.29108805,145.09,145.05,0.70382949]
[1768442611500,0.41858737,145.08,145.05,0.70382949]
[1768442612483,0.10219587,145.07,145.02,12.52719598]
[1768442612776,3.29428392,145.07,145.03,0.70382949]
[1768442615782,3.29428392,145.07,145.02,3.19208805]
[1768442615783,0.41542346,145.06,145.02,0.70382949]
[1768442615977,0.41542346,145.06,145.02,3.89591754]
[1768442616182,0.41542346,145.06,145.03,0.70382949]
[1768442630702,3.61390358,145.07,145.03,0.70382949]
[1768442631696,0.42181553,145.11,145.03,0.70382949]
[1768442631891,0.099,145.11,145.07,0.6796067]
[1768442632399,0.41858737,145.1,145.07,0.6796067]
[1768442632896,7.0904785,145.13,145.05,0.6796067]
[1768442632897,3.29428392,145.09,145.05,0.6796067]
[1768442633284,0.41542346,145.08,145.04,0.6796067]
[1768442633796,0.41542346,145.08,145.05,0.6796067]
[1768442644580,0.10532814,145.07,145.02,0.6796067]
[1768442644778,0.41232251,145.06,145.02,0.6796067]
[1768442645186,2.45360635,145.06,145.02,0.6796067]
[1768442645803,0.40630451,145.02,144.98,0.6796067]
[1768442645992,0.37630452,145.02,144.98,0.6796067]
[1768442646185,0.34630453,145.02,144.99,0.6796067]
[1768442646591,2.04128384,145.03,144.99,0.6796067]
[1768442648301,0.36181555,145.02,144.99,0.6796067]
[1768442650901,0.33181556,145.02,144.99,0.6796067]
[1768442651585,2.04128384,145.03,144.99,0.6796067]
[1768442652907,0.33181556,145.02,144.99,0.6796067]
[1768442654025,0.099,145.01,144.97,0.6796067]
[1768442654189,0.3294874,145.0,144.97,0.6796067]
[1768442654386,2.36848942,144.98,144.94,0.8796067]
[1768442654711,0.10356388,144.97,144.94,0.8796067]
[1768442658200,0.07356389,144.97,144.94,0.8796067]
[1768442658402,8.93840456,144.99,144.94,0.8796067]
[1768442660014,0.30181557,144.98,144.94,0.8796067]
[1768442661309,102.375,145.03,144.97,0.69877666]
[1768442661310,0.30181557,145.02,144.97,0.69877666]
[1768442661510,0.30181557,145.02,144.98,0.69877666]
[1768442662104,0.29978741,145.0,144.95,0.68894845]
[1768442662311,0.10100787,144.99,144.95,0.68894845]
[1768442662510,0.29779962,144.98,144.95,0.68894845]
[1768442663021,0.10297579,144.97,144.94,0.2]
[1768442663926,0.10297579,144.97,144.94,0.88894845]
[1768442664801,0.10297579,144.97,144.94,0.2]
[1768442666004,7.19741617,145.02,144.95,2.73023229]
[1768442666325,0.099,145.01,144.97,0.68894845]
[1768442666534,2.14028384,145.01,144.97,0.68894845]
[1768442668035,2.34309941,145.02,144.97,0.68894845]
[1768442670433,0.099,145.01,144.97,0.68894845]
[1768442672836,2.04128384,145.02,144.97,0.68894845]
[1768442673145,2.34309941,145.03,144.98,0.68894845]
[1768442673318,12.86181557,145.04,145.0,0.68894845]
[1768442674341,0.099,145.03,145.0,0.68894845]
[1768442674544,2.04128384,145.03,144.99,0.68894845]
[1768442674732,2.34309941,145.03,144.99,0.68894845]
[1768442675045,0.30181557,145.03,144.99,0.68894845]
[1768442679927,2.04128384,145.04,144.99,0.68894845]
[1768442680836,9.03495387,145.04,144.99,0.68894845]
[1768442682157,0.29978741,145.03,144.99,0.68894845]
[1768442683250,0.30181557,145.04,145.0,0.68894845]
[1768442683951,2.34309941,145.04,145.0,0.68894845]
[1768442684451,8.93605158,145.04,145.0,0.68894845]
[1768442684655,0.099,145.03,145.0,0.68894845]
[1768442685236,6.99412773,145.03,144.99,0.68894845]
[1768442688859,0.29978741,145.02,144.99,0.68894845]
[1768442689060,6.99412773,145.03,144.99,0.68894845]
[1768442689353,0.099,145.03,144.99,0.68894845]
[1768442689559,6.99414123,145.03,144.99,0.68894845]
[1768442691064,0.29978741,145.02,144.97,2.74737102]
[1768442691354,0.29978741,145.02,144.98,0.70608718]
[1768442691549,9.23824064,145.03,144.98,0.70608718]
[1768442694660,7.1969568,145.03,144.98,0.70608718]
[1768442694862,9.23824064,145.03,144.98,0.70608718]
[1768442696161,7.1969568,145.03,144.98,0.70608718]
[1768442696339,9.23824064,145.03,144.98,0.70608718]
[1768442696665,9.23749169,145.05,145.0,0.70608718]
[1768442697664,7.19620785,145.05,145.01,0.70608718]
[1768442699856,10.38727104,145.05,145.01,0.70608718]
[1768442700674,3.49287876,145.05,145.01,0.70608718]
[1768442701249,12.88181557,145.07,145.02,0.70608718]
[1768442701447,3.49287876,145.08,145.03,0.70608718]
[1768442702073,10.38568129,145.08,145.04,0.70608718]
[1768442702264,10.38568129,145.08,145.04,0.64608719]
[1768442702668,7.2542009,145.09,145.04,0.64608719]
[1768442702969,17.22865053,145.11,145.05,3.19106319]
[1768442702970,0.36181556,145.11,145.05,3.19106319]
[1768442703171,10.44420307,145.11,145.05,3.19106319]
[1768442703852,0.3591874,145.09,145.02,5.34408856]
[1768442704055,0.10160187,145.08,145.04,3.19106319]
[1768442704261,0.10160187,145.08,145.05,0.70608718]
[1768442704462,10.44543664,145.09,145.05,0.70608718]
[1768442705982,3.29006319,145.08,145.04,0.70608718]
[1768442706759,7.25380752,145.1,145.05,0.70608718]
[1768442706962,0.099,145.09,145.05,0.70608718]
[1768442707290,0.3591874,145.08,145.05,0.70608718]
[1768442713088,10.08364032,145.09,145.05,0.70608718]
[1768442713482,10.18264032,145.09,145.05,0.70608718]
[1768442713789,0.3591874,145.08,145.05,0.70608718]
[1768442713985,0.3591874,145.08,145.01,12.56]
[1768442714172,3.54767474,145.06,145.0,0.70608718]
[1768442714374,19.45257713,145.09,145.01,0.70608718]
[1768442714375,3.29521515,145.05,145.01,0.70608718]
[1768442715277,3.55287875,145.07,145.02,0.70608718]
[1768442715482,10.44615085,145.07,145.02,0.70608718]
[1768442715790,3.29006319,145.06,145.02,0.70608718]
[1768442718377,0.099,145.06,145.02,0.70608718]
[1768442718686,3.55287875,145.07,145.02,0.70608718]
[1768442719083,0.36181556,145.07,145.03,0.70608718]
[1768442719260,16.11287875,145.09,145.05,0.70608718]
[1768442719584,12.92181556,145.09,145.05,0.64608724]
[1768442720488,16.11287875,145.09,145.05,0.64608724]
[1768442721983,12.56,145.09,145.06,0.70507021]
[1768442722293,3.19106319,145.1,145.06,0.64507026]
[1768442722587,3.34946314,145.1,145.06,0.64507026]
[1768442724162,0.41918134,145.09,145.05,0.70507021]
[1768442725485,3.67287864,145.1,145.06,0.70507021]
[1768442725672,0.48181545,145.1,145.06,0.70507021]
[1768442729269,3.67287864,145.11,145.06,0.70507021]
[1768442729482,3.67287864,145.11,145.07,0.70507021]
[1768442729793,3.67287864,145.11,145.07,0.64507022]
[1768442731590,10.56450451,145.11,145.07,0.64507022]
[1768442731781,0.15839999,145.1,145.07,0.64507022]
[1768442732494,0.15839999,145.1,145.07,0.58507027]
[1768442732898,3.34946318,145.1,145.07,0.52507028]
[1768442734209,6.89084895,145.12,145.07,0.52507028]
[1768442734503,3.29006319,145.11,145.07,0.52507028]
[1768442734671,0.099,145.11,145.07,0.52507028]
[1768442735576,3.29006319,145.11,145.07,0.52507028]
[1768442738200,10.18150643,145.11,145.07,0.52507028]
[1768442738393,0.65618722,145.1,145.07,0.52507028]
[1768442739600,0.65618722,145.1,145.07,0.46507029]
[1768442739900,10.08250643,145.11,145.07,0.46507029]
[1768442740097,7.60380242,145.12,145.07,0.46507029]
[1768442740305,10.79486561,145.12,145.07,0.46507029]
[1768442740599,10.79486561,145.12,145.07,3.19106319]
[1768442740898,0.71282516,145.12,145.08,3.19106319]
[1768442741287,0.71282516,145.12,145.04,10.08565604]
[1768442741288,10.79483479,145.12,145.03,6.89497076]
[1768442741484,0.71282516,145.12,145.08,0.70507021]
[1768442741679,0.71282516,145.12,145.08,0.58507021]
[1768442743606,16.66388835,145.13,145.09,0.70507021]
[1768442743899,16.66388835,145.13,145.09,0.64507021]
[1768442744688,0.2,145.13,145.1,3.19106319]
[1768442744895,0.2,145.13,145.1,3.13106319]
[1768442745812,0.2,145.13,145.12,0.70507021]
[1768442746103,0.2,145.13,145.12,0.67507021]
[1768442746304,0.2,145.13,145.12,0.61507021]
[1768442746607,0.2,145.13,145.12,0.55507021]
[1768442749000,0.2,145.14,145.13,0.70507021]
[1768442749312,0.2,145.14,145.13,0.64507021]
[1768442753609,0.2,145.14,145.13,0.58507021]
[1768442758101,0.2,145.15,145.14,0.68692438]
[1768442758313,0.2,145.15,145.12,3.19106319]
[1768442758610,0.2,145.15,145.09,6.89226982]
[1768442758611,0.2,145.15,145.13,3.19106319]
[1768442760218,0.2,145.15,145.13,3.87798757]
[1768442760516,0.2,145.15,145.14,3.87798757]
[1768442760901,0.2,145.15,145.14,3.81798757]
[1768442761298,0.2,145.16,145.14,2.72520239]
[1768442761498,0.1,145.18,145.16,0.68692438]
[1768442761804,0.1,145.18,145.16,0.62692438]
[1768442762005,0.2,145.19,145.17,2.03827801]
[1768442762211,0.2,145.19,145.18,2.03827801]
[1768442763010,0.67862577,145.21,145.18,2.03827801]
[1768442763211,0.67862577,145.21,145.14,6.88981804]
[1768442763413,0.67862577,145.21,145.18,2.03827801]
[1768442763620,0.67862577,145.21,145.18,2.72520239]
[1768442764101,0.67862577,145.21,145.18,0.68692438]
[1768442768418,0.77862577,145.23,145.2,0.68692438]
[1768442769811,0.77862577,145.23,145.2,2.72520239]
[1768442770212,0.77862577,145.23,145.2,0.68692438]
[1768442774828,0.77862577,145.23,145.2,0.62692438]
[1768442779640,0.1,145.23,145.2,2.66520239]
[1768442779831,0.77862577,145.23,145.2,2.66520239]
[1768442781836,0.77862577,145.23,145.2,0.62692438]
[1768442785340,0.77862577,145.23,145.2,2.66520239]
[1768442786156,0.77862577,145.23,145.2,0.62692438]
[1768442789437,0.1,145.23,145.21,0.67825962]
[1768442789934,0.81851456,145.23,145.2,2.03827801]
[1768442790123,0.81851456,145.23,145.19,2.71653763]
[1768442790848,0.81851456,145.23,145.2,0.67825962]
[1768442796234,0.1,145.23,145.21,0.67825962]
[1768442796441,0.1,145.23,145.2,2.03827801]
[1768442796442,0.81851456,145.23,145.19,0.67825962]
[1768442796637,0.81851456,145.23,145.19,2.71653763]
[1768442796837,0.81851456,145.23,145.19,0.67825962]
[1768442797153,0.81851456,145.23,145.19,2.71653763]
[1768442797963,0.81851456,145.23,145.19,0.67825962]
[1768442798155,0.81851456,145.23,145.19,2.71653763]
[1768442799656,0.81851456,145.23,145.2,0.67825962]
[1768442800657,0.81851456,145.23,145.2,2.71653763]
[1768442800953,0.1,145.23,145.21,0.67825962]
[1768442802259,0.81851456,145.23,145.2,2.71653763]
[1768442803034,0.81851456,145.23,145.2,0.67825962]
[1768442803230,0.81851456,145.23,145.19,2.03827801]
[1768442803454,0.81851456,145.23,145.19,2.71653763]
[1768442805755,0.81851456,145.23,145.18,12.54]
[1768442805756,0.1,145.23,145.21,0.67825962]
[1768442807747,0.81851456,145.23,145.2,0.67825962]
[1768442808359,0.81851456,145.23,145.19,2.71653763]
[1768442808541,0.81851456,145.23,145.19,0.67825962]
[1768442809757,0.2,145.24,145.21,0.67825962]
[1768442810266,0.91851456,145.24,145.21,0.67825962]
[1768442812458,0.91851456,145.24,145.21,2.71653763]
[1768442814057,0.2,145.24,145.22,0.6566874]
[1768442814251,0.2,145.24,145.23,2.69496541]
[1768442817359,0.2,145.24,145.23,0.6566874]
[1768442817550,0.2,145.24,145.22,2.69496541]
[1768442817750,0.2,145.24,145.23,0.6566874]
[1768442817949,0.2,145.25,145.24,0.6566874]
[1768442818251,15.97218836,145.26,145.24,0.6566874]
[1768442818764,15.97218836,145.26,145.24,2.69496541]
[1768442818969,15.97218836,145.26,145.23,2.68646264]
[1768442819178,15.97218836,145.26,145.23,0.64818463]
[1768442819343,15.97218836,145.26,145.23,2.68646264]
[1768442819543,16.66448862,145.26,145.23,2.68646264]
[1768442819745,16.66448862,145.26,145.22,2.68646264]
[1768442820473,16.66448862,145.26,145.23,0.64818463]
[1768442821263,15.97218836,145.26,145.23,2.68646264]
[1768442821459,15.97218836,145.26,145.23,3.82889806]
[1768442821641,15.97218836,145.26,145.23,0.64818463]
[1768442821846,16.66448862,145.26,145.23,0.64818463]
[1768442822570,16.66448862,145.26,145.23,3.82889806]
[1768442823579,15.97218836,145.26,145.24,0.64818463]
[1768442824265,15.97218836,145.26,145.23,3.82889806]
[1768442824474,16.66448862,145.26,145.23,3.82889806]
[1768442826266,15.97218836,145.26,145.24,0.64818463]
[1768442826450,15.97218836,145.26,145.23,3.82889806]
[1768442826783,16.66448862,145.26,145.23,3.82889806]
[1768442828954,16.66448862,145.26,145.23,0.64818463]
[1768442830370,16.66448862,145.26,145.22,15.72071343]
[1768442830371,0.69230026,145.25,145.22,0.64818463]
[1768442830579,0.69230026,145.25,145.21,3.82889806]
[1768442831661,0.69230026,145.25,145.21,0.64818463]
[1768442831972,0.69230026,145.23,145.18,0.64818463]
[1768442832162,0.69230026,145.22,145.17,3.95483551]
[1768442832553,0.69230026,145.22,145.18,0.64818463]
[1768442833072,0.66230025,145.22,145.18,0.64818463]
[1768442833377,15.97218836,145.26,145.21,3.83740083]
[1768442834067,15.97218836,145.26,145.22,0.6566874]
[1768442834577,15.97218836,145.26,145.22,3.83740083]
[1768442834963,15.97218836,145.26,145.22,0.6566874]
[1768442835166,0.69230026,145.25,145.22,3.83740083]
[1768442836778,0.66230026,145.25,145.22,3.83740083]
[1768442837783,0.66230026,145.25,145.21,0.6566874]
[1768442837975,0.66230026,145.25,145.22,3.18071343]
[1768442839874,0.63230026,145.25,145.22,3.18071343]
[1768442842192,0.63230026,145.25,145.22,3.87882816]
[1768442843088,0.63230026,145.25,145.23,3.18071343]
[1768442843298,16.62747494,145.26,145.23,3.87882816]
[1768442843594,15.97218836,145.26,145.24,3.87882816]
[1768442844882,10.23796953,145.26,145.25,3.87882816]
[1768442845089,0.65528658,145.29,145.25,3.18071343]
[1768442845273,0.65528658,145.29,145.27,3.18071343]
[1768442845474,0.65528658,145.29,145.26,3.18071343]
[1768442846071,0.65528658,145.29,145.23,33.40081075]
[1768442846470,0.65528658,145.29,145.24,3.18071343]
[1768442846783,0.65528658,145.29,145.24,15.72071343]
[1768442847496,0.65528658,145.29,145.25,3.18071343]
[1768442849780,0.65528658,145.29,145.24,15.72071343]
[1768442851491,0.65528658,145.29,145.22,5.34408856]
[1768442851698,0.65528658,145.26,145.21,12.54]
[1768442851890,0.65528658,145.26,145.21,15.72071343]
[1768442852199,0.65528658,145.26,145.22,3.18071343]
[1768442862514,0.65528658,145.25,145.21,3.18071343]
[1768442862679,0.65528658,145.25,145.2,15.72071343]
[1768442864595,0.65528658,145.25,145.21,3.18071343]
[1768442875817,3.85091121,145.24,145.19,11.81199187]
[1768442876014,0.67019778,145.23,145.19,15.72071343]
[1768442879403,0.67019778,145.23,145.2,3.18071343]
[1768442881339,0.67019778,145.23,145.2,2.03663148]
[1768442882633,0.67019778,145.23,145.19,14.57663148]
[1768442883035,2.03663148,145.23,145.17,0.12593745]
[1768442883221,136.78559902,145.31,145.17,0.12593745]
[1768442883222,0.67019778,145.21,145.17,12.66593745]
[1768442883609,0.64019779,145.21,145.17,12.70912208]
[1768442884010,0.64019779,145.21,145.17,14.74575356]
[1768442884231,0.64019779,145.21,145.18,0.04318463]
[1768442884823,2.03663148,145.2,145.17,0.12593745]
[1768442885626,0.67019778,145.19,145.17,0.12593745]
[1768442885833,0.64019779,145.19,145.17,0.12593745]
[1768442888635,0.67019778,145.21,145.18,0.07318462]
[1768442888845,0.67019778,145.21,145.18,2.1098161]
[1768442889052,0.67019778,145.21,145.18,2.03663148]
[1768442889221,6.88482705,145.25,145.18,2.1098161]
[1768442889533,0.67019778,145.24,145.2,2.1098161]
[1768442889930,0.67019778,145.24,145.19,2.1098161]
[1768442891337,0.67019778,145.24,145.2,2.1098161]
[1768442891954,0.67019778,145.24,145.21,2.03663148]
[1768442892127,0.67019778,145.24,145.2,0.07318462]
[1768442892322,0.67019778,145.24,145.21,2.03663148]
[1768442895750,0.67019778,145.25,145.22,2.1098161]
[1768442896328,0.67019778,145.25,145.23,2.03663148]
[1768442896730,0.67019778,145.25,145.22,0.07318462]
[1768442896952,0.67019778,145.25,145.22,2.1098161]
[1768442898957,0.67019778,145.25,145.23,2.03663148]
[1768442899246,0.67019778,145.25,145.22,2.1098161]
[1768442899456,0.67019778,145.25,145.22,0.07318462]
[1768442899754,0.67019778,145.25,145.22,2.1098161]
[1768442900747,0.6534222,145.26,145.23,2.03663148]
[1768442901847,0.6534222,145.28,145.24,2.1098161]
[1768442902057,0.6534222,145.28,145.25,2.03663148]
[1768442902241,0.6534222,145.28,145.25,2.1098161]
[1768442902751,0.69411015,145.29,145.26,2.1098161]
[1768442902949,0.69411015,145.29,145.26,2.03663148]
[1768442904254,0.69411015,145.29,145.25,2.1098161]
[1768442906645,0.69411015,145.29,145.26,2.03663148]
[1768442907243,0.69411015,145.29,145.25,2.1098161]
[1768442908754,0.69411015,145.29,145.26,2.03663148]
[1768442913356,0.69411015,145.29,145.25,2.1098161]
[1768442915666,0.69411015,145.29,145.25,0.07318462]
[1768442915836,0.69411015,145.29,145.25,2.1098161]
[1768442916359,0.69411015,145.29,145.25,0.07318462]
[1768442916745,0.69411015,145.29,145.25,2.1098161]
[1768442920661,0.69411015,145.29,145.25,0.07318462]
[1768442920860,0.69411015,145.26,145.22,61.57318462]
[1768442921050,0.69411015,145.26,145.22,14.6498161]
[1768442922173,0.69411015,145.26,145.24,2.03663148]
[1768442922667,0.69411015,145.26,145.21,0.07318462]
[1768442922972,0.69411015,145.26,145.24,2.03663148]
[1768442923264,0.69411015,145.26,145.21,12.61318462]
[1768442923568,0.69411015,145.26,145.24,2.03663148]
[1768442927671,0.69411015,145.26,145.25,2.03663148]
[1768442929079,0.69411015,145.26,145.23,0.07318462]
[1768442929269,0.69411015,145.26,145.25,2.03663148]
[1768442929774,0.69411015,145.26,145.24,2.03663148]
[1768442930072,0.69411015,145.26,145.25,2.03663148]
[1768442931874,6.88254095,145.3,145.25,2.03663148]
[1768442932381,6.8819849,145.31,145.27,2.03663148]
[1768442933486,8.91799674,145.32,145.26,2.03663148]
[1768442933652,0.67417237,145.31,145.26,2.03663148]
[1768442933851,2.71080385,145.31,145.26,2.03663148]
[1768442934066,2.71080385,145.31,145.25,0.68534284]
[1768442934067,0.67417237,145.3,145.25,2.03663148]
[1768442934265,0.67417237,145.29,145.24,2.03663148]
[1768442934464,0.67417237,145.29,145.23,0.68534284]
[1768442934666,0.67417237,145.29,145.25,2.03663148]
[1768442935062,0.67417237,145.29,145.25,0.68534284]
[1768442935267,0.67417237,145.29,145.26,2.03663148]
[1768442937481,0.67417237,145.29,145.25,2.03663148]
[1768442938359,0.67417237,145.29,145.26,2.03663148]
[1768442939874,0.67417237,145.29,145.27,2.03663148]
[1768442941558,0.67417237,145.29,145.28,2.03663148]
[1768442942057,0.67417237,145.29,145.27,2.03663148]
[1768442942661,0.67417237,145.29,145.26,0.68534284]
[1768442942960,0.67417237,145.29,145.27,2.03663148]
[1768442943587,0.67417237,145.29,145.27,3.17934707]
[1768442943962,0.67417237,145.29,145.26,0.68534284]
[1768442944162,0.67417237,145.29,145.26,3.86468991]
[1768442944372,0.67417237,145.29,145.27,3.17934707]
[1768442944582,0.67417237,145.32,145.27,3.86468991]
[1768442944793,0.67417237,145.3,145.27,3.86468991]
[1768442946671,0.67417237,145.32,145.28,0.68534284]
[1768442946860,0.67417237,145.31,145.28,0.68534284]
[1768442947056,0.67417237,145.31,145.27,3.86468991]
[1768442947482,0.67417237,145.31,145.27,0.68534284]
[1768442947694,0.67417237,145.31,145.27,3.86468991]
[1768442949089,0.67417237,145.31,145.27,3.17934707]
[1768442949986,0.67417237,145.31,145.27,3.86468991]
[1768442950287,0.67417237,145.33,145.3,0.68534284]
[1768442950587,0.67417237,145.32,145.28,3.17934707]
[1768442952589,0.67417237,145.32,145.27,3.86468991]
[1768442960592,0.65936454,145.31,145.27,0.68534284]
[1768442967804,0.7090344,145.3,145.25,8.63127844]
[1768442967980,0.7090344,145.26,145.23,0.65799483]
[1768442969097,0.7090344,145.27,145.23,0.65799483]
[1768442971207,6.88245289,145.3,145.24,0.65799483]
[1768442971501,0.7090344,145.28,145.25,0.65799483]
[1768442973007,0.7090344,145.28,145.24,0.65799483]
[1768442974703,0.7090344,145.28,145.21,12.54]
[1768442974704,0.7090344,145.26,145.22,0.65799483]
[1768442974898,0.7090344,145.25,145.22,0.65799483]
[1768442975406,0.7090344,145.25,145.21,0.65799483]
[1768442975913,0.7090344,145.25,145.22,0.65799483]
[1768442979213,0.7090344,145.26,145.22,0.65799483]
[1768442980213,0.7090344,145.26,145.22,3.7773419]
[1768442980701,0.7090344,145.26,145.22,0.59799483]
[1768442983607,0.7090344,145.26,145.22,3.7773419]
[1768442985696,0.7090344,145.27,145.24,0.64729477]
[1768442985895,0.7090344,145.28,145.25,0.64729477]
[1768442986818,0.7090344,145.28,145.24,3.82664184]
[1768442987723,0.7090344,145.28,145.24,0.64729477]
[1768442993304,0.68437953,145.27,145.23,15.71934707]
[1768442993508,0.68437953,145.27,145.23,0.64729477]
[1768442993509,0.68437953,145.26,145.23,0.64729477]
[1768443001740,0.68437953,145.23,145.2,5.34408856]
[1768443002043,0.65437954,145.23,145.19,3.82664184]
[1768443003424,0.65437954,145.23,145.19,2.68420362]
[1768443003616,0.65437954,145.23,145.19,0.64729477]
[1768443003819,0.65437954,145.23,145.19,2.68420362]
[1768443004039,0.65437954,145.23,145.19,0.64729477]
[1768443007145,0.65437954,145.23,145.19,2.68420362]
[1768443009046,0.65437954,145.23,145.19,0.64729477]
[1768443010547,2.03690885,145.25,145.2,0.66802572]
[1768443010748,0.68437953,145.24,145.2,0.66802572]
[1768443014747,0.68437953,145.24,145.21,2.70493457]
[1768443014932,0.68437953,145.26,145.22,2.70493457]
[1768443015131,0.68437953,145.26,145.23,0.66802572]
[1768443016856,0.68437953,145.26,145.21,2.70493457]
[1768443017533,0.68437953,145.25,145.21,2.70493457]
[1768443018350,0.68437953,145.25,145.21,0.66802572]
[1768443020064,0.4433493,145.25,145.21,0.66802572]
[1768443021166,2.03690885,145.22,145.18,0.65281873]
[1768443021458,2.03690885,145.21,145.17,0.12593745]
[1768443021843,2.03690885,145.25,145.17,0.12593745]
[1768443021844,2.03690885,145.2,145.17,0.12593745]
[1768443022143,0.67559274,145.19,145.17,0.12593745]
[1768443022341,0.64559275,145.19,145.17,0.12593745]
[1768443024471,0.67559274,145.21,145.17,0.78876797]
[1768443024638,0.67559274,145.21,145.17,2.82567682]
[1768443026161,0.67559274,145.21,145.18,0.66283052]
[1768443028748,0.67559274,145.21,145.17,2.1628463]
[1768443028951,0.67559274,145.21,145.17,2.82567682]
[1768443030771,0.67559274,145.23,145.2,0.66283052]
[1768443034975,0.67559274,145.23,145.19,2.69973937]
[1768443035349,0.67559274,145.22,145.17,8.16976538]
[1768443036077,0.67559274,145.22,145.18,0.66283052]
[1768443036377,2.71250159,145.22,145.18,0.66283052]
[1768443036952,0.67559274,145.22,145.18,2.69973937]
[1768443037376,0.67559274,145.22,145.19,2.69973937]
[1768443037562,0.67559274,145.23,145.19,2.69973937]
[1768443037764,0.67559274,145.23,145.2,0.66283052]
[1768443038555,0.67559274,145.23,145.19,2.69973937]
[1768443040365,0.67559274,145.23,145.19,0.66283052]
[1768443045061,0.67559274,145.23,145.2,0.66283052]
[1768443060716,0.67705605,145.22,145.17,20.04693486]
[1768443060892,0.67705605,145.21,145.17,18.66718334]
[1768443062099,0.67705605,145.21,145.17,20.70409219]
[1768443062299,0.67705605,145.21,145.18,0.65715733]
[1768443065809,0.67705605,145.21,145.18,3.84042731]
[1768443067007,0.67705605,145.21,145.19,0.65715733]
[1768443067383,0.67705605,145.21,145.19,3.84042731]
[1768443067578,0.67705605,145.23,145.19,3.84042731]
[1768443067785,0.67705605,145.23,145.2,0.65715733]
[1768443075728,0.67705605,145.22,145.18,0.65715733]
[1768443075917,0.67705605,145.21,145.17,3.96636476]
[1768443076902,0.67705605,145.21,145.17,0.78309478]
[1768443081503,0.67705605,145.21,145.18,0.65944598]
[1768443085619,0.67705605,145.21,145.17,4.02577658]
[1768443086020,0.69100803,145.2,145.17,0.12593745]
[1768443087115,0.69100803,145.2,145.17,0.8425066]
[1768443093005,0.69100803,145.17,145.13,3.89983913]
[1768443093204,0.69100803,145.17,145.14,0.71656915]
[1768443093621,0.69100803,145.17,145.13,0.71656915]
[1768443093920,0.69100803,145.16,145.13,0.71656915]
[1768443095331,3.87427801,145.15,145.12,0.91656915]
[1768443095513,0.69100803,145.15,145.12,0.91656915]
[1768443095713,0.69100803,145.15,145.12,0.2]
[1768443096020,0.69100803,145.15,145.11,0.2]
[1768443096021,0.69100803,145.12,145.11,0.2]
[1768443096223,0.69100803,145.11,145.08,0.71656915]
[1768443096526,3.81427803,145.11,145.08,0.71656915]
[1768443096729,3.18326998,145.1,145.07,0.2]
[1768443097101,3.18326998,145.09,145.07,0.2]
[1768443097511,6.89141583,145.11,145.07,0.2]
[1768443097721,3.18326998,145.09,145.07,0.2]
[1768443098421,3.18326998,145.1,145.07,0.2]
[1768443098606,0.69100803,145.09,145.07,0.2]
[1768443099311,0.69100803,145.08,145.07,0.2]
[1768443104515,0.49100802,145.08,145.07,0.2]
[1768443109834,0.69100803,145.09,145.07,0.2]
[1768443110525,0.68937091,145.14,145.09,0.66260546]
[1768443110733,0.570603,145.13,145.09,3.84587544]
[1768443111828,0.570603,145.13,145.09,0.66260546]
[1768443112330,0.68818323,145.12,145.09,0.66260546]
[1768443118544,0.5717788,145.11,145.08,0.66260546]
[1768443121031,0.68587831,145.08,145.06,0.2]
[1768443121317,0.68080014,145.06,145.04,0.2]
[1768443121516,0.18308806,145.05,145.04,1e-08]
[1768443121939,0.68937091,145.08,145.04,1e-08]
[1768443122121,0.174603,145.07,145.04,1e-08]
[1768443122321,0.68937091,145.09,145.04,0.66260547]
[1768443122727,0.68937091,145.09,145.05,0.66260546]
[1768443123920,3.87264089,145.09,145.05,0.66260546]
[1768443124321,0.68937091,145.09,145.05,0.66260546]
[1768443126526,0.68937091,145.11,145.07,0.66260546]
[1768443127541,0.68937091,145.11,145.08,0.66260546]
[1768443128629,0.68937091,145.12,145.09,0.66260546]
[1768443128829,0.68937091,145.12,145.08,2.0411375]
[1768443130732,0.68937091,145.12,145.08,2.70374296]
[1768443131261,0.68937091,145.12,145.08,0.66260546]
[1768443131557,0.68937091,145.12,145.08,2.70374296]
[1768443132228,0.68937091,145.12,145.08,0.66260546]
[1768443132541,0.234003,145.11,145.08,0.66260546]
[1768443134456,2.73050841,145.12,145.08,0.66260546]
[1768443135348,0.68937091,145.12,145.08,0.66260546]
[1768443138049,7.58027385,145.12,145.08,0.66260546]